[Event "*** SCC Grand Prix: Titled Tuesday Blitz"]
[Site "Chess.com"]
[Date "2020.09.08"]
[Round "1"]
[White "CHESSMASTER759"]
[Black "paulrusan"]
[Result "1-0"]
[WhiteElo "2582"]
[BlackElo "2255"]
[TimeControl "180+1"]
[EndTime "10:04:57 PDT"]
[Termination "CHESSMASTER759 won by resignation"]

1. e4 {[%clk 0:02:59.9]} 1... g6 {[%clk 0:02:59.8]} 2. f4 {[%clk 0:02:59.2]}
2... Bg7 {[%clk 0:02:59.3]} 3. Nf3 {[%clk 0:02:59.4]} 3... d6 {[%clk 0:02:59.3]}
4. d4 {[%clk 0:02:57.8]} 4... Nf6 {[%clk 0:02:58.9]} 5. Bd3 {[%clk 0:02:57.1]}
5... c5 {[%clk 0:02:58.3]} 6. c3 {[%clk 0:02:57.2]} 6... b6 {[%clk 0:02:57.7]}
7. O-O {[%clk 0:02:56.2]} 7... O-O {[%clk 0:02:57.3]} 8. Re1 {[%clk 0:02:55.5]}
8... Bb7 {[%clk 0:02:56.3]} 9. e5 {[%clk 0:02:52.8]} 9... Nd5 {[%clk 0:02:55.9]}
10. Be4 {[%clk 0:02:51]} 10... Qc8 {[%clk 0:02:49.6]} 11. c4 {[%clk 0:02:47]}
11... Nc7 {[%clk 0:02:49.6]} 12. Bxb7 {[%clk 0:02:44.6]} 12... Qxb7 {[%clk
0:02:49.2]} 13. d5 {[%clk 0:02:45.5]} 13... Nd7 {[%clk 0:02:45.7]} 14. Nc3
{[%clk 0:02:41]} 14... a6 {[%clk 0:02:41]} 15. b3 {[%clk 0:02:38.8]} 15... b5
{[%clk 0:02:40.8]} 16. Bd2 {[%clk 0:02:33]} 16... b4 {[%clk 0:02:34.9]} 17. Ne4
{[%clk 0:02:26.6]} 17... dxe5 {[%clk 0:02:34.6]} 18. Nxe5 {[%clk 0:02:24.9]}
18... Nxe5 {[%clk 0:02:33]} 19. fxe5 {[%clk 0:02:24.8]} 19... Bxe5 {[%clk
0:02:31.8]} 20. Nxc5 {[%clk 0:02:24.7]} 20... Qb6 {[%clk 0:02:32.1]} 21. Be3
{[%clk 0:02:16.9]} 21... Bxa1 {[%clk 0:02:28.5]} 22. Qxa1 {[%clk 0:02:15.7]}
22... Rfe8 {[%clk 0:02:15.1]} 23. Ne6 {[%clk 0:02:12.1]} 23... Qxe3+ {[%clk
0:02:11.7]} 24. Rxe3 {[%clk 0:02:13]} 24... fxe6 {[%clk 0:02:12]} 25. dxe6
{[%clk 0:02:00.1]} 25... Rad8 {[%clk 0:02:11.4]} 26. h3 {[%clk 0:01:49.2]} 26...
Rd6 {[%clk 0:02:08]} 27. Qe1 {[%clk 0:01:48.4]} 27... a5 {[%clk 0:02:05.1]} 28.
Re5 {[%clk 0:01:46.4]} 28... Red8 {[%clk 0:02:03.7]} 29. Kh2 {[%clk 0:01:44.3]}
29... Rd1 {[%clk 0:02:03.1]} 30. Qf2 {[%clk 0:01:41.7]} 30... Rf8 {[%clk
0:02:03.1]} 31. Qc5 {[%clk 0:01:39.2]} 31... Ne8 {[%clk 0:01:55.6]} 32. Qxe7
{[%clk 0:01:37.8]} 32... Nf6 {[%clk 0:01:55.7]} 33. Rb5 {[%clk 0:01:22.3]} 1-0

[Event "*** SCC Grand Prix: Titled Tuesday Blitz"]
[Site "Chess.com"]
[Date "2020.09.08"]
[Round "1"]
[White "GalperinPlaton"]
[Black "Ladislav1969"]
[Result "1-0"]
[WhiteElo "2706"]
[BlackElo "2358"]
[TimeControl "180+1"]
[EndTime "10:04:58 PDT"]
[Termination "GalperinPlaton won by resignation"]

1. d4 {[%clk 0:03:00.8]} 1... Nf6 {[%clk 0:03:00]} 2. Nf3 {[%clk 0:03:01.7]}
2... g6 {[%clk 0:03:00.2]} 3. Bf4 {[%clk 0:03:01.3]} 3... Bg7 {[%clk 0:02:59.8]}
4. Nc3 {[%clk 0:03:00.3]} 4... d5 {[%clk 0:02:59.8]} 5. e3 {[%clk 0:02:58.1]}
5... b6 {[%clk 0:02:59.8]} 6. Nb5 {[%clk 0:02:58.1]} 6... Na6 {[%clk 0:02:58.7]}
7. c3 {[%clk 0:02:52.6]} 7... c6 {[%clk 0:02:55.8]} 8. Na3 {[%clk 0:02:52.9]}
8... O-O {[%clk 0:02:47.9]} 9. h3 {[%clk 0:02:53.7]} 9... Nc7 {[%clk 0:02:32.2]}
10. Bd3 {[%clk 0:02:53.8]} 10... a5 {[%clk 0:02:29.4]} 11. Qe2 {[%clk
0:02:50.7]} 11... c5 {[%clk 0:02:14.2]} 12. O-O {[%clk 0:02:48.8]} 12... Bb7
{[%clk 0:02:11.8]} 13. Rad1 {[%clk 0:02:44]} 13... Nd7 {[%clk 0:02:04.7]} 14.
Bh2 {[%clk 0:02:40.5]} 14... Bc6 {[%clk 0:01:57.5]} 15. e4 {[%clk 0:02:39.4]}
15... dxe4 {[%clk 0:01:46.1]} 16. Bxe4 {[%clk 0:02:40.3]} 16... Bxe4 {[%clk
0:01:45.6]} 17. Qxe4 {[%clk 0:02:40.4]} 17... cxd4 {[%clk 0:01:37.8]} 18. Nxd4
{[%clk 0:02:40.3]} 18... Nc5 {[%clk 0:01:25.1]} 19. Qc6 {[%clk 0:02:39.8]} 19...
N7a6 {[%clk 0:01:10.1]} 20. Ne6 {[%clk 0:02:36.5]} 20... fxe6 {[%clk 0:01:03.8]}
21. Rxd8 {[%clk 0:02:36]} 21... Raxd8 {[%clk 0:01:03.6]} 22. Nc4 {[%clk
0:02:35.8]} 22... Nd3 {[%clk 0:00:59]} 23. Qxe6+ {[%clk 0:02:33.6]} 23... Kh8
{[%clk 0:00:57.9]} 24. Qxb6 {[%clk 0:02:34.2]} 24... Nac5 {[%clk 0:00:55.2]} 25.
Qxa5 {[%clk 0:02:32.1]} 25... Ne4 {[%clk 0:00:53.5]} 26. f3 {[%clk 0:02:31]}
26... Nxb2 {[%clk 0:00:29]} 27. fxe4 {[%clk 0:02:24.7]} 27... Nxc4 {[%clk
0:00:21.3]} 28. Rxf8+ {[%clk 0:02:23.8]} 28... Rxf8 {[%clk 0:00:21.1]} 29. Qc5
{[%clk 0:02:23.6]} 29... Nd2 {[%clk 0:00:18.9]} 30. Be5 {[%clk 0:02:21.3]} 30...
Nxe4 {[%clk 0:00:09.7]} 31. Bxg7+ {[%clk 0:02:21.3]} 31... Kxg7 {[%clk
0:00:10.1]} 32. Qxe7+ {[%clk 0:02:22.2]} 1-0

[Event "*** SCC Grand Prix: Titled Tuesday Blitz"]
[Site "Chess.com"]
[Date "2020.09.08"]
[Round "1"]
[White "KaterynaLagno"]
[Black "tk22h"]
[Result "1-0"]
[WhiteElo "2715"]
[BlackElo "2367"]
[TimeControl "180+1"]
[EndTime "10:05:01 PDT"]
[Termination "KaterynaLagno won by resignation"]

1. e4 {[%clk 0:03:00.6]} 1... e5 {[%clk 0:02:56.4]} 2. Nf3 {[%clk 0:03:00.3]}
2... Nc6 {[%clk 0:02:55]} 3. Bb5 {[%clk 0:03:00.7]} 3... a6 {[%clk 0:02:54.2]}
4. Ba4 {[%clk 0:03:01]} 4... Nf6 {[%clk 0:02:54.2]} 5. O-O {[%clk 0:03:01.4]}
5... Be7 {[%clk 0:02:53.8]} 6. d3 {[%clk 0:03:01.4]} 6... b5 {[%clk 0:02:52.5]}
7. Bb3 {[%clk 0:03:02]} 7... d6 {[%clk 0:02:53]} 8. c3 {[%clk 0:03:01.8]} 8...
O-O {[%clk 0:02:52.5]} 9. Nbd2 {[%clk 0:03:01.5]} 9... Na5 {[%clk 0:02:52]} 10.
Bc2 {[%clk 0:03:00.9]} 10... c5 {[%clk 0:02:52.5]} 11. Re1 {[%clk 0:03:01.3]}
11... Nc6 {[%clk 0:02:51.7]} 12. Nf1 {[%clk 0:03:01.9]} 12... h6 {[%clk
0:02:51.7]} 13. h3 {[%clk 0:02:59.2]} 13... Re8 {[%clk 0:02:51.6]} 14. Ng3
{[%clk 0:02:58.8]} 14... Bf8 {[%clk 0:02:51.7]} 15. d4 {[%clk 0:02:58.7]} 15...
exd4 {[%clk 0:02:47.9]} 16. cxd4 {[%clk 0:02:59.6]} 16... cxd4 {[%clk
0:02:48.2]} 17. Nxd4 {[%clk 0:02:59.6]} 17... Nxd4 {[%clk 0:02:48.3]} 18. Qxd4
{[%clk 0:02:59.2]} 18... g6 {[%clk 0:02:48.2]} 19. Bf4 {[%clk 0:02:55.4]} 19...
Bb7 {[%clk 0:02:41.3]} 20. Rad1 {[%clk 0:02:54.4]} 20... Rc8 {[%clk 0:02:37.5]}
21. Bb3 {[%clk 0:02:51.4]} 21... Bg7 {[%clk 0:02:37]} 22. Qd3 {[%clk 0:02:26.1]}
22... Nd7 {[%clk 0:02:20.9]} 23. Qxd6 {[%clk 0:02:20.9]} 23... Nc5 {[%clk
0:02:12.7]} 24. e5 {[%clk 0:01:23.6]} 24... Nxb3 {[%clk 0:02:01.5]} 25. axb3
{[%clk 0:01:24.5]} 25... Qh4 {[%clk 0:01:55.5]} 26. e6 {[%clk 0:00:49.6]} 26...
Rxe6 {[%clk 0:01:50.3]} 27. Rxe6 {[%clk 0:00:48.2]} 27... fxe6 {[%clk
0:01:51.2]} 28. Qxe6+ {[%clk 0:00:48]} 28... Kh7 {[%clk 0:01:51.3]} 29. Be5
{[%clk 0:00:45.8]} 29... Rd8 {[%clk 0:01:40.6]} 30. Rxd8 {[%clk 0:00:44.8]}
30... Qxd8 {[%clk 0:01:39.9]} 31. Qf7 {[%clk 0:00:44.6]} 31... Qf8 {[%clk
0:01:39.6]} 32. Qxb7 {[%clk 0:00:44]} 1-0

[Event "*** SCC Grand Prix: Titled Tuesday Blitz"]
[Site "Chess.com"]
[Date "2020.09.08"]
[Round "1"]
[White "vizumatv4hoda"]
[Black "markberk"]
[Result "1-0"]
[WhiteElo "2744"]
[BlackElo "2385"]
[TimeControl "180+1"]
[EndTime "10:05:06 PDT"]
[Termination "vizumatv4hoda won on time"]

1. e4 {[%clk 0:02:52.2]} 1... c6 {[%clk 0:02:59.2]} 2. d4 {[%clk 0:02:51.8]}
2... d5 {[%clk 0:02:59]} 3. exd5 {[%clk 0:02:52.7]} 3... cxd5 {[%clk 0:02:58.4]}
4. c4 {[%clk 0:02:53.6]} 4... Nf6 {[%clk 0:02:57.2]} 5. Nc3 {[%clk 0:02:54.5]}
5... Be6 {[%clk 0:02:56.1]} 6. cxd5 {[%clk 0:02:53.9]} 6... Nxd5 {[%clk
0:02:55]} 7. Nf3 {[%clk 0:02:54.8]} 7... g6 {[%clk 0:02:45.1]} 8. Ng5 {[%clk
0:02:54.2]} 8... Nxc3 {[%clk 0:02:41.6]} 9. bxc3 {[%clk 0:02:55.1]} 9... Bd5
{[%clk 0:02:36.9]} 10. Bb5+ {[%clk 0:02:52.4]} 10... Nc6 {[%clk 0:02:14.1]} 11.
O-O {[%clk 0:02:51]} 11... h6 {[%clk 0:02:02.6]} 12. Nf3 {[%clk 0:02:39.6]}
12... Bg7 {[%clk 0:01:58.9]} 13. Re1 {[%clk 0:02:36.6]} 13... O-O {[%clk
0:01:56.7]} 14. Bxc6 {[%clk 0:02:27.9]} 14... Bxc6 {[%clk 0:01:50.3]} 15. Ne5
{[%clk 0:02:28.8]} 15... Bd5 {[%clk 0:01:36.6]} 16. Ba3 {[%clk 0:02:24.7]} 16...
Re8 {[%clk 0:01:32.4]} 17. c4 {[%clk 0:02:23.3]} 17... Bc6 {[%clk 0:01:21.5]}
18. d5 {[%clk 0:02:22.1]} 18... Qa5 {[%clk 0:00:39.6]} 19. Bb2 {[%clk
0:02:17.6]} 19... Ba4 {[%clk 0:00:26.8]} 20. Qf3 {[%clk 0:02:17.8]} 20... Rf8
{[%clk 0:00:26]} 21. Bc3 {[%clk 0:02:13.5]} 21... Qa6 {[%clk 0:00:25]} 22. Re4
{[%clk 0:02:12.6]} 22... Bc2 {[%clk 0:00:23.5]} 23. Re2 {[%clk 0:02:12.2]} 23...
Bf5 {[%clk 0:00:20.4]} 24. h3 {[%clk 0:02:11.7]} 24... Bxe5 {[%clk 0:00:16.7]}
25. Bxe5 {[%clk 0:02:12.6]} 25... Qxc4 {[%clk 0:00:16.2]} 26. Bb2 {[%clk
0:02:13.2]} 26... Rad8 {[%clk 0:00:11.7]} 27. Rae1 {[%clk 0:02:12.5]} 27... Qxd5
{[%clk 0:00:09.9]} 28. Qf4 {[%clk 0:02:13]} 28... Kh7 {[%clk 0:00:04]} 29. Rxe7
{[%clk 0:02:12.9]} 1-0

[Event "*** SCC Grand Prix: Titled Tuesday Blitz"]
[Site "Chess.com"]
[Date "2020.09.08"]
[Round "1"]
[White "Hikaru"]
[Black "Shuvalov"]
[Result "1-0"]
[WhiteElo "3216"]
[BlackElo "2471"]
[TimeControl "180+1"]
[EndTime "10:05:20 PDT"]
[Termination "Hikaru won by checkmate"]

1. Nf3 {[%clk 0:03:00.9]} 1... d5 {[%clk 0:02:58.5]} 2. b3 {[%clk 0:03:01]} 2...
Nf6 {[%clk 0:02:57.6]} 3. e3 {[%clk 0:03:01.1]} 3... Bf5 {[%clk 0:02:56.5]} 4.
Bb2 {[%clk 0:03:01.2]} 4... e6 {[%clk 0:02:56.7]} 5. Nh4 {[%clk 0:03:01.9]} 5...
Bg6 {[%clk 0:02:56.2]} 6. Nxg6 {[%clk 0:03:01.5]} 6... hxg6 {[%clk 0:02:57.1]}
7. g3 {[%clk 0:03:02.1]} 7... Be7 {[%clk 0:02:52.9]} 8. Bg2 {[%clk 0:03:02.2]}
8... c6 {[%clk 0:02:53.2]} 9. d3 {[%clk 0:03:02.6]} 9... Nbd7 {[%clk 0:02:53]}
10. Nd2 {[%clk 0:03:03]} 10... a5 {[%clk 0:02:52.2]} 11. a3 {[%clk 0:03:02.9]}
11... O-O {[%clk 0:02:51.4]} 12. Qe2 {[%clk 0:03:00.9]} 12... Bd6 {[%clk
0:02:50.2]} 13. e4 {[%clk 0:03:00.7]} 13... e5 {[%clk 0:02:40.3]} 14. O-O {[%clk
0:02:59.1]} 14... Re8 {[%clk 0:02:39]} 15. exd5 {[%clk 0:02:55.4]} 15... cxd5
{[%clk 0:02:38.4]} 16. c4 {[%clk 0:02:55.6]} 16... Nb6 {[%clk 0:01:51.4]} 17.
Rfc1 {[%clk 0:02:45.6]} 17... Rc8 {[%clk 0:01:48.3]} 18. Bc3 {[%clk 0:02:45]}
18... a4 {[%clk 0:01:43]} 19. b4 {[%clk 0:02:32.2]} 19... Bb8 {[%clk 0:01:40.6]}
20. Bb2 {[%clk 0:02:31]} 20... Qd7 {[%clk 0:01:23.4]} 21. Rc2 {[%clk 0:02:30.7]}
21... d4 {[%clk 0:01:20.2]} 22. Re1 {[%clk 0:02:25.6]} 22... g5 {[%clk 0:01:17]}
23. Ne4 {[%clk 0:02:20.8]} 23... Nxe4 {[%clk 0:01:11.9]} 24. Qxe4 {[%clk
0:02:21.7]} 24... g4 {[%clk 0:00:51.4]} 25. Qxb7 {[%clk 0:02:20.4]} 25... Qxb7
{[%clk 0:00:49]} 26. Bxb7 {[%clk 0:02:20.2]} 26... Rcd8 {[%clk 0:00:49]} 27. c5
{[%clk 0:02:18.3]} 27... Nd5 {[%clk 0:00:47.8]} 28. Bc6 {[%clk 0:02:18.6]} 28...
Re7 {[%clk 0:00:46.1]} 29. Bxa4 {[%clk 0:02:18.7]} 29... f5 {[%clk 0:00:39.3]}
30. Bb3 {[%clk 0:02:18.1]} 30... Kf8 {[%clk 0:00:36.7]} 31. Bxd5 {[%clk
0:02:17.3]} 31... Rxd5 {[%clk 0:00:37.6]} 32. a4 {[%clk 0:02:17.1]} 32... Ba7
{[%clk 0:00:36]} 33. a5 {[%clk 0:02:17.5]} 33... e4 {[%clk 0:00:34]} 34. Kf1
{[%clk 0:02:15.8]} 34... Ke8 {[%clk 0:00:26.1]} 35. Rc4 {[%clk 0:02:13.1]} 35...
exd3 {[%clk 0:00:19.3]} 36. Rxe7+ {[%clk 0:02:14]} 36... Kxe7 {[%clk 0:00:19.7]}
37. Rxd4 {[%clk 0:02:14.6]} 37... Rxd4 {[%clk 0:00:19.1]} 38. Bxd4 {[%clk
0:02:14.7]} 38... Ke6 {[%clk 0:00:19.6]} 39. b5 {[%clk 0:02:13.3]} 39... Kd5
{[%clk 0:00:19.5]} 40. b6 {[%clk 0:02:13.9]} 40... Bb8 {[%clk 0:00:15.7]} 41.
Be3 {[%clk 0:02:13.5]} 41... Ke4 {[%clk 0:00:15.6]} 42. a6 {[%clk 0:02:13.7]}
42... Kf3 {[%clk 0:00:13.8]} 43. a7 {[%clk 0:02:13.2]} 43... g6 {[%clk
0:00:09.1]} 44. a8=Q# {[%clk 0:02:14.1]} 1-0

[Event "*** SCC Grand Prix: Titled Tuesday Blitz"]
[Site "Chess.com"]
[Date "2020.09.08"]
[Round "1"]
[White "JRenatoMaranhao"]
[Black "SCIM"]
[Result "0-1"]
[WhiteElo "2021"]
[BlackElo "2491"]
[TimeControl "180+1"]
[EndTime "10:05:24 PDT"]
[Termination "SCIM won on time"]

1. e4 {[%clk 0:03:00.1]} 1... c5 {[%clk 0:02:57.9]} 2. Nf3 {[%clk 0:03:00.2]}
2... e6 {[%clk 0:02:58.2]} 3. d4 {[%clk 0:03:00.4]} 3... cxd4 {[%clk 0:02:59.1]}
4. Nxd4 {[%clk 0:03:00.2]} 4... Nc6 {[%clk 0:02:59.6]} 5. Nc3 {[%clk 0:02:59.3]}
5... Qc7 {[%clk 0:02:59.2]} 6. Nxc6 {[%clk 0:02:45.1]} 6... bxc6 {[%clk
0:02:49.7]} 7. Bd3 {[%clk 0:02:42]} 7... d5 {[%clk 0:02:48.3]} 8. O-O {[%clk
0:02:36.8]} 8... Nf6 {[%clk 0:02:45.6]} 9. Bg5 {[%clk 0:02:19.5]} 9... Be7
{[%clk 0:02:42]} 10. Re1 {[%clk 0:02:13.6]} 10... O-O {[%clk 0:02:41.2]} 11. e5
{[%clk 0:02:10.1]} 11... Ne8 {[%clk 0:02:38.6]} 12. Bxe7 {[%clk 0:02:00.5]}
12... Qxe7 {[%clk 0:02:39.5]} 13. Re3 {[%clk 0:01:03.7]} 13... g6 {[%clk
0:02:37.1]} 14. Rg3 {[%clk 0:00:42.6]} 14... Ng7 {[%clk 0:02:33.2]} 15. Ne2
{[%clk 0:00:34.2]} 15... a5 {[%clk 0:02:25.1]} 16. Nf4 {[%clk 0:00:31.1]} 16...
Ba6 {[%clk 0:02:24.5]} 17. Nh5 {[%clk 0:00:21.1]} 17... gxh5 {[%clk 0:02:09]}
18. Qxh5 {[%clk 0:00:22]} 18... Bxd3 {[%clk 0:02:04.2]} 19. cxd3 {[%clk
0:00:21.3]} 19... f5 {[%clk 0:02:02.6]} 20. exf6 {[%clk 0:00:19.6]} 20... Rxf6
{[%clk 0:02:00.2]} 21. Re1 {[%clk 0:00:15.4]} 21... Raf8 {[%clk 0:01:58.2]} 22.
Qh4 {[%clk 0:00:06.3]} 22... Kh8 {[%clk 0:01:53.1]} 23. Qd4 {[%clk 0:00:03.9]}
23... Nf5 {[%clk 0:01:38.2]} 0-1

[Event "*** SCC Grand Prix: Titled Tuesday Blitz"]
[Site "Chess.com"]
[Date "2020.09.08"]
[Round "1"]
[White "teacher4chess"]
[Black "Sergey85Rodchenkov"]
[Result "0-1"]
[WhiteElo "2081"]
[BlackElo "2500"]
[TimeControl "180+1"]
[EndTime "10:05:27 PDT"]
[Termination "Sergey85Rodchenkov won by resignation"]

1. d4 {[%clk 0:03:00.6]} 1... Nf6 {[%clk 0:02:59.3]} 2. c4 {[%clk 0:03:00.3]}
2... e6 {[%clk 0:02:59]} 3. a3 {[%clk 0:03:00.3]} 3... b6 {[%clk 0:02:54.3]} 4.
Nf3 {[%clk 0:02:59.7]} 4... Bb7 {[%clk 0:02:54.4]} 5. Nc3 {[%clk 0:02:59.5]}
5... Ne4 {[%clk 0:02:53.8]} 6. Qc2 {[%clk 0:02:56.6]} 6... f5 {[%clk 0:02:52.8]}
7. d5 {[%clk 0:02:47.6]} 7... Nd6 {[%clk 0:02:16.2]} 8. e4 {[%clk 0:02:41.9]}
8... fxe4 {[%clk 0:02:14.5]} 9. Nxe4 {[%clk 0:02:41.5]} 9... exd5 {[%clk
0:02:11.5]} 10. Bg5 {[%clk 0:02:34.6]} 10... Be7 {[%clk 0:02:10.8]} 11. Nxd6+
{[%clk 0:02:33]} 11... cxd6 {[%clk 0:02:11]} 12. h4 {[%clk 0:02:05.9]} 12... O-O
{[%clk 0:02:08]} 13. Bd3 {[%clk 0:01:56.2]} 13... h6 {[%clk 0:02:07.7]} 14.
O-O-O {[%clk 0:01:35]} 14... Nc6 {[%clk 0:02:01.4]} 15. Bxe7 {[%clk 0:01:19.5]}
15... Qxe7 {[%clk 0:01:59.3]} 16. Rhe1 {[%clk 0:01:18.9]} 16... Ne5 {[%clk
0:01:56.1]} 17. Bh7+ {[%clk 0:01:08.2]} 17... Kh8 {[%clk 0:01:54.5]} 18. Kb1
{[%clk 0:01:02]} 18... Rac8 {[%clk 0:01:52.8]} 19. Nxe5 {[%clk 0:00:49.2]} 19...
dxe5 {[%clk 0:01:52.3]} 20. g3 {[%clk 0:00:37.1]} 20... Rxc4 {[%clk 0:01:45.7]}
21. Qd3 {[%clk 0:00:36.2]} 21... Qf6 {[%clk 0:01:32.1]} 22. h5 {[%clk
0:00:24.1]} 22... e4 {[%clk 0:01:30.5]} 23. Qd2 {[%clk 0:00:19.8]} 23... Kxh7
{[%clk 0:01:28.6]} 0-1

[Event "*** SCC Grand Prix: Titled Tuesday Blitz"]
[Site "Chess.com"]
[Date "2020.09.08"]
[Round "1"]
[White "Alexander_Zubov"]
[Black "MFBerna"]
[Result "1-0"]
[WhiteElo "2966"]
[BlackElo "2463"]
[TimeControl "180+1"]
[EndTime "10:05:33 PDT"]
[Termination "Alexander_Zubov won by resignation"]

1. d3 {[%clk 0:02:59.3]} 1... d5 {[%clk 0:02:59.8]} 2. Nf3 {[%clk 0:02:58.8]}
2... Nf6 {[%clk 0:02:59.9]} 3. g3 {[%clk 0:02:58.7]} 3... g6 {[%clk 0:03:00.3]}
4. Bg2 {[%clk 0:02:58.7]} 4... Bg7 {[%clk 0:03:00.9]} 5. O-O {[%clk 0:02:58.9]}
5... O-O {[%clk 0:03:01.5]} 6. Nbd2 {[%clk 0:02:58.9]} 6... c5 {[%clk 0:03:02]}
7. e4 {[%clk 0:02:58.8]} 7... Nc6 {[%clk 0:03:02.4]} 8. c3 {[%clk 0:02:58.1]}
8... e5 {[%clk 0:03:02.4]} 9. exd5 {[%clk 0:02:56.8]} 9... Nxd5 {[%clk
0:03:03.3]} 10. Re1 {[%clk 0:02:56.1]} 10... Re8 {[%clk 0:03:03.8]} 11. Qb3
{[%clk 0:02:49.7]} 11... Nc7 {[%clk 0:02:49.2]} 12. Ne4 {[%clk 0:02:46.2]} 12...
b6 {[%clk 0:02:17.9]} 13. Bg5 {[%clk 0:02:25.9]} 13... Qd5 {[%clk 0:00:53.1]}
14. Nf6+ {[%clk 0:01:59.3]} 14... Bxf6 {[%clk 0:00:53.2]} 15. Bxf6 {[%clk
0:01:59.4]} 15... Qxb3 {[%clk 0:00:50.9]} 16. axb3 {[%clk 0:01:59]} 16... Bb7
{[%clk 0:00:22]} 17. Nxe5 {[%clk 0:01:47.4]} 17... Re6 {[%clk 0:00:18.7]} 18.
Nxc6 {[%clk 0:01:34.2]} 18... Bxc6 {[%clk 0:00:19.4]} 19. Rxe6 {[%clk
0:01:32.2]} 19... Bxg2 {[%clk 0:00:18.1]} 20. Re7 {[%clk 0:01:13.4]} 20... Nd5
{[%clk 0:00:17.8]} 21. Rexa7 {[%clk 0:01:12]} 21... Rxa7 {[%clk 0:00:16.7]} 22.
Rxa7 {[%clk 0:01:10.9]} 22... Nxf6 {[%clk 0:00:17]} 23. Kxg2 {[%clk 0:01:10.6]}
1-0

[Event "*** SCC Grand Prix: Titled Tuesday Blitz"]
[Site "Chess.com"]
[Date "2020.09.08"]
[Round "1"]
[White "RaunakSadhwani2005"]
[Black "zmeeed67"]
[Result "1-0"]
[WhiteElo "2873"]
[BlackElo "2435"]
[TimeControl "180+1"]
[EndTime "10:05:33 PDT"]
[Termination "RaunakSadhwani2005 won by resignation"]

1. e4 {[%clk 0:03:00.9]} 1... Nc6 {[%clk 0:02:59.1]} 2. d4 {[%clk 0:02:57.8]}
2... d6 {[%clk 0:02:58.8]} 3. d5 {[%clk 0:02:55.9]} 3... Ne5 {[%clk 0:02:56.1]}
4. f4 {[%clk 0:02:55.8]} 4... Nd7 {[%clk 0:02:56]} 5. Nf3 {[%clk 0:02:55.5]}
5... c6 {[%clk 0:02:52.3]} 6. Nc3 {[%clk 0:02:52]} 6... Ngf6 {[%clk 0:02:39.4]}
7. Bc4 {[%clk 0:02:51.5]} 7... cxd5 {[%clk 0:02:33.7]} 8. exd5 {[%clk
0:02:52.4]} 8... g6 {[%clk 0:02:33]} 9. Be3 {[%clk 0:02:50.8]} 9... Bg7 {[%clk
0:02:32.2]} 10. Qe2 {[%clk 0:02:47.1]} 10... O-O {[%clk 0:02:31.4]} 11. Bd4
{[%clk 0:02:46.9]} 11... Re8 {[%clk 0:02:30.9]} 12. h4 {[%clk 0:02:42.7]} 12...
Nh5 {[%clk 0:01:56.7]} 13. Bxg7 {[%clk 0:02:39.5]} 13... Kxg7 {[%clk 0:01:56.2]}
14. Qd2 {[%clk 0:02:34.1]} 14... Ndf6 {[%clk 0:01:40]} 15. O-O-O {[%clk
0:02:33.8]} 15... a6 {[%clk 0:01:38.7]} 16. Nd4 {[%clk 0:02:32.6]} 16... Bg4
{[%clk 0:01:21.9]} 17. Be2 {[%clk 0:02:11.2]} 17... Qd7 {[%clk 0:01:18.7]} 18.
f5 {[%clk 0:02:08.8]} 18... Rac8 {[%clk 0:01:04.8]} 19. Bxg4 {[%clk 0:02:03.1]}
19... Nxg4 {[%clk 0:01:04]} 20. Qe2 {[%clk 0:02:00.2]} 20... Ne5 {[%clk
0:00:51.8]} 21. Ne4 {[%clk 0:01:55.8]} 21... gxf5 {[%clk 0:00:36.6]} 22. Nxd6
{[%clk 0:01:28.4]} 22... Ng3 {[%clk 0:00:14.9]} 23. Qxe5+ {[%clk 0:01:27.4]} 1-0

[Event "*** SCC Grand Prix: Titled Tuesday Blitz"]
[Site "Chess.com"]
[Date "2020.09.08"]
[Round "1"]
[White "Xeniya2005"]
[Black "Maghalashvili"]
[Result "0-1"]
[WhiteElo "2384"]
[BlackElo "2743"]
[TimeControl "180+1"]
[EndTime "10:05:33 PDT"]
[Termination "Maghalashvili won by resignation"]

1. e4 {[%clk 0:03:00.9]} 1... c5 {[%clk 0:02:52.6]} 2. Be2 {[%clk 0:03:00.2]}
2... g6 {[%clk 0:02:51.5]} 3. f4 {[%clk 0:02:59.9]} 3... d6 {[%clk 0:02:49.3]}
4. Nf3 {[%clk 0:02:59.6]} 4... Nf6 {[%clk 0:02:48.9]} 5. d3 {[%clk 0:02:59.1]}
5... Bg4 {[%clk 0:02:48.3]} 6. O-O {[%clk 0:02:57.7]} 6... Nc6 {[%clk
0:02:47.2]} 7. c3 {[%clk 0:02:57.4]} 7... Bg7 {[%clk 0:02:46.5]} 8. Be3 {[%clk
0:02:57]} 8... Bxf3 {[%clk 0:02:46.1]} 9. Bxf3 {[%clk 0:02:55.7]} 9... O-O
{[%clk 0:02:47]} 10. Nd2 {[%clk 0:02:54.8]} 10... Rc8 {[%clk 0:02:43.9]} 11. Qe2
{[%clk 0:02:46.7]} 11... Nd7 {[%clk 0:02:42.7]} 12. a4 {[%clk 0:02:42.1]} 12...
a6 {[%clk 0:02:41.3]} 13. Qf2 {[%clk 0:02:17.1]} 13... b5 {[%clk 0:02:16.8]} 14.
axb5 {[%clk 0:02:15.7]} 14... axb5 {[%clk 0:02:17.7]} 15. Qg3 {[%clk 0:02:12.8]}
15... b4 {[%clk 0:02:16.9]} 16. Rac1 {[%clk 0:02:11.1]} 16... Nb6 {[%clk
0:02:08.1]} 17. Qh3 {[%clk 0:01:50.6]} 17... Na4 {[%clk 0:02:01.7]} 18. f5
{[%clk 0:01:33.8]} 18... Nxb2 {[%clk 0:01:56.2]} 19. cxb4 {[%clk 0:01:19]} 19...
Nxb4 {[%clk 0:01:54.9]} 20. Bh6 {[%clk 0:01:16.8]} 20... N2xd3 {[%clk
0:01:51.2]} 21. Bxg7 {[%clk 0:01:11]} 21... Kxg7 {[%clk 0:01:52.1]} 22. Rcd1
{[%clk 0:01:06.9]} 22... c4 {[%clk 0:01:52.3]} 23. Be2 {[%clk 0:00:56]} 23...
Qb6+ {[%clk 0:01:49.3]} 24. Kh1 {[%clk 0:00:48.8]} 24... Nf2+ {[%clk 0:01:49.3]}
25. Rxf2 {[%clk 0:00:43.4]} 25... Qxf2 {[%clk 0:01:50.2]} 26. Bxc4 {[%clk
0:00:39.7]} 26... Nc2 {[%clk 0:01:36.8]} 27. Qc3+ {[%clk 0:00:31.1]} 27... Nd4
{[%clk 0:01:29.9]} 28. Rf1 {[%clk 0:00:30]} 28... Rxc4 {[%clk 0:01:24.4]} 0-1